[Event "MPL National Senior Chess-ch 2022"]
[Site "Kanpur"]
[Date "2022.02.25"]
[Round "2.10"]
[White "Lalith Babu M R"]
[Black "Bharat Kumar Reddy Poluri"]
[Result "1-0"]
[ECO "E05"]
[WhiteElo "2563"]
[BlackElo "2263"]
[Annotator "ChessBase"]
[PlyCount "129"]
[EventDate "2022.02.25"]
[EventCountry "IND"]
[SourceTitle "playchess.com"]
[Source "ChessBase"]
[SourceQuality "1"]
[TimeControl "5400+30"]

1. d4 {[%emt 1:31:00]} e6 {[%emt 1:31:00]} 2. c4 {[%emt 0:00:30]} Nf6 {[%emt 0:00:30]} 3. Nf3 {[%emt 0:00:30]} d5 {[%emt 0:00:30]} 4. g3 {[%emt 0:00:30]} Be7 {[%emt 0:00:30]} 5. Bg2 {[%emt 0:00:30]} O-O {[%emt 0:00:30]} 6. O-O {[%emt 0:00:30]} dxc4 {[%emt 0:00:30]} 7. Qc2 {[%emt 0:00:30]} a6 {[%emt 0:00:30]} 8. a4 {[%emt 0:00:30]} Bd7 {[%emt 0:00:30]} 9. Qxc4 {[%emt 0:00:30]} Bc6 {[%emt 0:00:30]} 10. Bg5 {[%emt 0:00:30]} Nbd7 {[%emt 0:00:30]} 11. Nc3 {[%emt 0:00:30]} h6 {[%emt 0:00:30]} 12. Bxf6 {[%emt 0:00:30]} Nxf6 {[%emt 0:00:30]} 13. a5 {[%emt 0:00:30]} Bd5 {[%emt 0:00:30]} 14. Qd3 {[%emt 0:00:30]} Bxf3 {[%emt 0:00:30]} 15. Bxf3 {[%emt 0:00:30]} c6 {[%emt 0:00:30]} 16. Qc4 {[%emt 0:00:30]} Qd6 {[%emt 0:00:30]} 17. e3 {[%emt 0:00:30]} e5 {[%emt 0:00:30]} 18. d5 {[%emt 0:00:30]} cxd5 {[%emt 0:00:30]} 19. Nxd5 {[%emt 0:00:30]} Nxd5 {[%emt 0:00:30]} 20. Bxd5 {[%emt 0:00:30]} Rab8 {[%emt 0:00:30]} 21. Rfd1 {[%emt 0:00:30]} b5 {[%emt 0:00:30]} 22. axb6 {[%emt 0:00:30]} Qxb6 {[%emt 0:00:30]} 23. Rxa6 {[%emt 0:00:30]} Qxb2 {[%emt 0:00:30]} 24. Ra7 {[%emt 0:00:30]} Qb4 {[%emt 0:00:30]} 25. Qc7 {[%emt 0:00:30]} Bc5 {[%emt 0:00:30]} 26. Bxf7+ {[%emt 0:00:30]} Kh8 {[%emt 0:00:30]} 27. Ra6 {[%emt 0:00:30]} Rb6 {[%emt 0:00:30]} 28. Rxb6 {[%emt 0:00:30]} Qxb6 {[%emt 0:00:30]} 29. Qxb6 {[%emt 0:00:30]} Bxb6 {[%emt 0:00:30]} 30. Rd7 {[%emt 0:00:30]} Bd8 {[%emt 0:00:30]} 31. h4 {[%emt 0:00:30]} g5 {[%emt 0:00:30]} 32. h5 {[%emt 0:00:30]} Bf6 {[%emt 0:00:30]} 33. Kf1 {[%emt 0:00:30]} Rd8 {[%emt 0:00:30]} 34. Rb7 {[%emt 0:00:30]} Rd2 {[%emt 0:00:30]} 35. Ke1 {[%emt 0:00:30]} Rc2 {[%emt 0:00:30]} 36. Bg6 {[%emt 0:00:30]} Ra2 {[%emt 0:00:30]} 37. Bb1 {[%emt 0:00:30]} Ra1 {[%emt 0:00:30]} 38. Ke2 {[%emt 0:00:30]} Kg8 {[%emt 0:00:30]} 39. Kf3 {[%emt 0:00:30]} Ra4 {[%emt 0:00:30]} 40. Bc2 {[%emt 0:00:30]} Ra8 {[%emt 0:00:30]} 41. Bb3+ {[%emt 0:00:30]} Kh8 {[%emt 0:00:30]} 42. Ke4 {[%emt 0:00:30]} Rf8 {[%emt 0:00:30]} 43. Bf7 {[%emt 0:00:30]} Kg7 {[%emt 0:00:30]} 44. Bd5+ Kh8 {[%emt 0:00:30]} 45. g4 {[%emt 0:01:00]} Bg7 {[%emt 0:00:30]} 46. Bf7 {[%emt 0:00:30]} Kh7 {[%emt 0:00:30]} 47. Kf5 {[%emt 0:00:30]} Rd8 {[%emt 0:00:30]} 48. Ke6 {[%emt 0:00:30]} Rf8 {[%emt 0:00:30]} 49. Ke7 {[%emt 0:00:30]} Kh8 {[%emt 0:00:30]} 50. Be6 {[%emt 0:00:30]} Kh7 {[%emt 0:00:30]} 51. Ra7 {[%emt 0:00:30]} Kh8 {[%emt 0:00:30]} 52. Bd5 {[%emt 0:00:30]} Kh7 {[%emt 0:00:30]} 53. Ra8 {[%emt 0:00:30]} Rxa8 {[%emt 0:00:30]} 54. Bxa8 {[%emt 0:00:30]} Kg8 {[%emt 0:00:30]} 55. Bd5+ {[%emt 0:00:30]} Kh8 {[%emt 0:00:30]} 56. Kf7 {[%emt 0:00:30]} Kh7 {[%emt 0:00:30]} 57. Be4+ {[%emt 0:00:30]} Kh8 58. Bc2 {[%emt 0:00:30]} e4 {[%emt 0:01:00]} 59. Bxe4 {[%emt 0:00:30]} Bc3 {[%emt 0:00:30]} 60. Bf5 {[%emt 0:00:30]} Be1 {[%emt 0:00:30]} 61. e4 {[%emt 0:00:30]} Bc3 {[%emt 0:00:30]} 62. Kg6 {[%emt 0:00:30]} Bg7 {[%emt 0:00:30]} 63. Be6 {[%emt 0:00:30]} Bf8 {[%emt 0:00:30]} 64. Bc4 {[%emt 0:00:30]} Bg7 {[%emt 0:00:30]} 65. f3 {[%emt 0:00:30]} 1-0

[Event "MPL National Senior Chess-ch 2022"]
[Site "Kanpur"]
[Date "2022.03.02"]
[Round "10.12"]
[White "Harsha Bharathakoti"]
[Black "Harshavardhan G B"]
[Result "1-0"]
[ECO "C48"]
[WhiteElo "2499"]
[BlackElo "2402"]
[Annotator "RC"]
[PlyCount "202"]
[EventDate "2022.02.25"]
[EventCountry "IND"]
[SourceTitle "playchess.com"]
[Source "ChessBase"]
[SourceQuality "1"]
[TimeControl "5400+30"]

1. e4 {[%emt 0:00:06]} e5 {[%emt 0:01:04]} 2. Nf3 {[%emt 0:00:06]} Nc6 {[%emt 0:00:09]} 3. Nc3 {[%emt 0:00:35]} Nf6 {[%emt 0:01:01]} 4. Bb5 {[%emt 0:00:06]} Bd6 {[%emt 0:02:31]} 5. d3 {[%emt 0:00:12]} h6 {[%emt 0:00:23]} 6. a3 {[%emt 0:00:06]} a6 {[%emt 0:00:33]} 7. Ba4 {[%emt 0:00:36]} Bc5 {[%emt 0:01:36]} 8. Bxc6 {[%emt 0:26:27]} dxc6 {[%emt 0:00:36]} 9. h3 {[%emt 0:00:04]} Qe7 {[%emt 0:04:29]} 10. Qe2 {[%emt 0:02:37]} Bd6 {[%emt 0:11:07]} 11. Be3 {[%emt 0:05:02]} c5 {[%emt 0:01:27]} 12. Nd2 {[%emt 0:12:28]} Be6 {[%emt 0:01:25]} 13. a4 {[%emt 0:10:44]} a5 {[%emt 0:05:59]} 14. Nc4 {[%emt 0:01:53]} b6 {[%emt 0:00:23]} 15. Nxd6+ {[%emt 0:02:41]} cxd6 {[%emt 0:24:07]} 16. f4 {[%emt 0:01:56]} exf4 {[%emt 0:03:55]} 17. Bxf4 {[%emt 0:00:16]} Nd7 {[%emt 0:00:06]} 18. Nb5 {[%emt 0:05:28]} Ne5 {[%emt 0:00:49]} 19. Qh5 {[%emt 0:02:57]} g5 {[%emt 0:01:12]} 20. Bxe5 {[%emt 0:00:14]} dxe5 {[%emt 0:00:07]} 21. b3 {[%emt 0:00:13]} O-O-O {[%emt 0:02:55]} 22. O-O-O {[%emt 0:05:09]} g4 {[%emt 0:10:16]} 23. Qxe5 {[%emt 0:02:24]} gxh3 {[%emt 0:01:00]} 24. gxh3 {[%emt 0:02:50]} Qg5+ {[%emt 0:00:21]} 25. Qxg5 {[%emt 0:00:05]} hxg5 {[%emt 0:00:04]} 26. Rdg1 {[%emt 0:04:02]} Rh5 {[%emt 0:01:35]} 27. Rh2 {[%emt 0:03:02]} Rdh8 {[%emt 0:01:20]} 28. Rhg2 {[%emt 0:00:08]} f6 {[%emt 0:00:24]} 29. e5 {[%emt 0:02:49]} Bxh3 {[%emt 0:11:29]} 30. Rg3 {[%emt 0:00:03]} fxe5 {[%emt 0:00:11]} 31. Rxg5 {[%emt 0:00:04]} Rxg5 {[%emt 0:00:54]} 32. Rxg5 {[%emt 0:00:05]} Bd7 {[%emt 0:00:13]} 33. Na3 {[%emt 0:04:26]} Rh7 {[%emt 0:01:12]} 34. Rxe5 {[%emt 0:00:09]} Kc7 {[%emt 0:00:04]} 35. Nc4 {[%emt 0:00:18]} Rh1+ {[%emt 0:02:21]} 36. Kb2 {[%emt 0:00:06]} Rh7 {[%emt 0:00:04]} 37. Kc3 {[%emt 0:00:33]} Rg7 {[%emt 0:00:43]} 38. Rh5 {[%emt 0:01:45]} Bc6 {[%emt 0:00:35]} 39. Ne5 {[%emt 0:00:54]} Bb7 {[%emt 0:00:26]} 40. Kc4 {[%emt 0:01:05]} Ba6+ {[%emt 0:04:12]} 41. Kc3 {[%emt 0:01:24]} Re7 {[%emt 0:00:37]} 42. Rf5 {[%emt 0:00:29]} Bc8 {[%emt 0:00:50]} 43. Rg5 {[%emt 0:00:39]} Bb7 {[%emt 0:00:06]} 44. Nc4 {[%emt 0:01:28]} Bc6 {[%emt 0:00:12]} 45. Rg6 {[%emt 0:00:03]} Rh7 {[%emt 0:00:21]} 46. Ne5 {[%emt 0:00:40]} Bd5 {[%emt 0:00:24]} 47. Rf6 {[%emt 0:01:28]} Rg7 {[%emt 0:01:01]} 48. Ng6 {[%emt 0:00:07]} Rd7 {[%emt 0:03:11]} 49. Nf4 {[%emt 0:00:49]} Kb7 {[%emt 0:00:28]} 50. Nxd5 {[%emt 0:03:05]} Rxd5 {[%emt 0:00:10]} 51. Rf4 {[%emt 0:00:02]} Rd6 {[%emt 0:00:31]} 52. Kc4 {[%emt 0:00:04]} Kc6 {[%emt 0:00:03]} 53. c3 {[%emt 0:00:11]} Rh6 {[%emt 0:00:03]} 54. Re4 {[%emt 0:00:26]} Rg6 {[%emt 0:00:49]} 55. d4 {[%emt 0:00:05]} cxd4 {[%emt 0:00:04]} 56. cxd4 {[%emt 0:02:46]} Rg3 {[%emt 0:00:45]} 57. Re6+ {[%emt 0:00:00]} Kc7 {[%emt 0:00:11]} 58. Re7+ {[%emt 0:00:23]} Kc6 {[%emt 0:00:11]} 59. Re6+ {[%emt 0:00:34]} Kc7 {[%emt 0:00:05]} 60. Rf6 {[%emt 0:00:15]} Rg5 {[%emt 0:00:17]} 61. Rh6 {[%emt 0:00:35]} Rf5 {[%emt 0:00:21]} 62. d5 {[%emt 0:00:31]} Rf3 {[%emt 0:00:15]} 63. Rh7+ {[%emt 0:00:16]} Kd6 {[%emt 0:07:47]} 64. Rh6+ {[%emt 0:00:07]} Kc7 {[%emt 0:00:00]} 65. Rc6+ {[%emt 0:00:55]} Kb7 {[%emt 0:00:00]} 66. Re6 {[%emt 0:00:42]} Kc7 {[%emt 0:00:00]} 67. Re4 {[%emt 0:00:38]} Kd6 {[%emt 0:00:00]} 68. Re6+ {[%emt 0:00:26]} Kc7 {[%emt 0:00:00]} 69. Rc6+ {[%emt 0:00:04]} Kb7 {[%emt 0:00:00]} 70. Kd4 {[%emt 0:00:19]} Rxb3 {[%emt 0:00:00]} 71. Rc3 {[%emt 0:00:39]} Rb4+ {[%emt 0:00:00]} 72. Rc4 {[%emt 0:00:04]} Rb1 {[%emt 0:00:00]} 73. d6 {[%emt 0:02:02]} Rh1 {[%emt 0:00:00]} 74. Rc7+ {[%emt 0:00:00]} Kb8 {[%emt 0:00:00]} 75. Rg7 {[%emt 0:00:00]} Kc8 {[%emt 0:00:00]} 76. Kd5 {[%emt 0:00:00]} Rh4 {[%emt 0:00:00]} 77. Rc7+ {[%emt 0:00:02]} Kd8 {[%emt 0:00:00]} 78. Rc4 {[%emt 0:00:39]} Rh1 {[%emt 0:00:00]} 79. Kc6 {[%emt 0:00:05]} Rb1 {[%emt 0:00:00]} 80. Rg4 {[%emt 0:00:56]} Rc1+ {[%emt 0:00:00]} 81. Kxb6 {[%emt 0:00:04]} Rd1 {[%emt 0:00:11]} 82. Kc5 {[%emt 0:00:04]} Rc1+ {[%emt 0:01:15]} 83. Rc4 {[%emt 0:00:15]} Rb1 {[%emt 0:00:39]} 84. Kc6 {[%emt 0:00:12]} Ra1 {[%emt 0:04:00]} 85. Rd4 {[%emt 0:00:06]} Rc1+ {[%emt 0:04:02]} 86. Kb6 {[%emt 0:00:09]} Kd7 {[%emt 0:00:04]} 87. Kxa5 {[%emt 0:00:09]} Rb1 {[%emt 0:00:19]} 88. Ka6 {[%emt 0:00:25]} Rb8 {[%emt 0:00:48]} 89. Ka7 {[%emt 0:00:46]} Rb1 {[%emt 0:00:15]} 90. Rd5 {[%emt 0:00:32]} Rb4 {[%emt 0:00:16]} 91. a5 {[%emt 0:00:09]} Rb1 {[%emt 0:00:20]} 92. Ka6 {[%emt 0:00:13]} Rb2 {[%emt 0:00:29]} 93. Rb5 {[%emt 0:00:29]} Ra2 {[%emt 0:00:11]} 94. Kb7 {[%emt 0:00:06]} Rh2 {[%emt 0:01:30]} 95. a6 {[%emt 0:00:07]} Kxd6 {[%emt 0:00:07]} 96. a7 {[%emt 0:00:04]} Rh7+ {[%emt 0:00:09]} 97. Ka6 {[%emt 0:00:04]} Rh8 {[%emt 0:00:05]} 98. Rb8 {[%emt 0:00:05]} Rh1 {[%emt 0:00:05]} 99. a8=Q {[%emt 0:00:08]} Ra1+ {[%emt 0:00:04]} 100. Kb7 {[%emt 0:00:07]} Rxa8 {[%emt 0:00:05]} 101. Rxa8 {[%emt 0:00:04]} Kd5 {[%emt 0:04:06]} 1-0